{"text_format":"1","workbook":"xlsx","n_sheets":3,"sheets":["รายการสินค้าคงคลัง","รายการเลือกสินค้าคงคลัง","เงินออม"],"not_rendered":{"charts":0,"images":0,"macros":1,"external_links":0,"defined_names":8,"comments":0,"pivot_tables":0},"unopened":[],"bounds":{"document_bytes":16777216,"sheet_cells":100000,"rows_first":2000,"rows_last":500,"rows_between":2000,"halvings":0,"cell_chars":16384,"cell_head_chars":4096},"cells_cut":0,"cells_raw":0,"read":"whole","date_system":"1900"}

{"sheet":"รายการสินค้าคงคลัง","index":0,"n_rows":15,"n_cols":11,"rows_kept":15,"cut":false,"hidden":false,"merged":[]}
[null,"รายการสินค้าคงคลัง"]
[null,"มูลค่ารวมของสินค้าคงคลัง:","รายการสินค้าคงคลัง:","จำนวนช่อง:","รายการเลือกสินค้าคงคลัง","ค้นหาช่อง"]
[null,{"$f":"SUM(รายการสินค้าคงคลัง[มูลค่าสินค้าคงคลัง:])","v":4649},{"$f":"COUNTA(รายการสินค้าคงคลัง[รายละเอียด])","v":11},{"$f":"SUMPRODUCT((1/COUNTIF(รายการสินค้าคงคลัง[หมายเลขช่อง],รายการสินค้าคงคลัง[หมายเลขช่อง]&\"\")))","v":6}]
[null,"SKU","รายละเอียด","หมายเลขช่อง","ตำแหน่งที่ตั้ง","หน่วย","ปริมาณ","จำนวนการสั่งซื้อใหม่","ราคา","มูลค่าสินค้าคงคลัง:","การสั่งซื้อใหม่"]
[null,"SP7875","รายการ 1","T345",{"$f":"IFERROR(VLOOKUP(รายการสินค้าคงคลัง[[#This Row],[หมายเลขช่อง]],เงินออม[],3,FALSE),\"\")","v":"แถว 2 ช่อง 1"},"แต่ละรายการ",20,10,30,{"$f":"รายการสินค้าคงคลัง[[#This Row],[ปริมาณ]]*รายการสินค้าคงคลัง[[#This Row],[ราคา]]","v":600},{"$f":"IFERROR(IF(รายการสินค้าคงคลัง[[#This Row],[ปริมาณ]]<=รายการสินค้าคงคลัง[[#This Row],[จำนวนการสั่งซื้อใหม่]],1,0),0)","v":0}]
[null,"TR87680","รายการ 2","T345",{"$f":"IFERROR(VLOOKUP(รายการสินค้าคงคลัง[[#This Row],[หมายเลขช่อง]],เงินออม[],3,FALSE),\"\")","v":"แถว 2 ช่อง 1"},"แต่ละรายการ",30,15,40,{"$f":"รายการสินค้าคงคลัง[[#This Row],[ปริมาณ]]*รายการสินค้าคงคลัง[[#This Row],[ราคา]]","v":1200},{"$f":"IFERROR(IF(รายการสินค้าคงคลัง[[#This Row],[ปริมาณ]]<=รายการสินค้าคงคลัง[[#This Row],[จำนวนการสั่งซื้อใหม่]],1,0),0)","v":0}]
[null,"MK676554","รายการ 3","T5789",{"$f":"IFERROR(VLOOKUP(รายการสินค้าคงคลัง[[#This Row],[หมายเลขช่อง]],เงินออม[],3,FALSE),\"\")","v":"แถว 1 ช่อง 1"},"แต่ละรายการ",10,5,5,{"$f":"รายการสินค้าคงคลัง[[#This Row],[ปริมาณ]]*รายการสินค้าคงคลัง[[#This Row],[ราคา]]","v":50},{"$f":"IFERROR(IF(รายการสินค้าคงคลัง[[#This Row],[ปริมาณ]]<=รายการสินค้าคงคลัง[[#This Row],[จำนวนการสั่งซื้อใหม่]],1,0),0)","v":0}]
[null,"YE98767","รายการ 4","T9876",{"$f":"IFERROR(VLOOKUP(รายการสินค้าคงคลัง[[#This Row],[หมายเลขช่อง]],เงินออม[],3,FALSE),\"\")","v":"แถว 3 ช่อง 2"},"กล่อง (10 ct)",40,10,15,{"$f":"รายการสินค้าคงคลัง[[#This Row],[ปริมาณ]]*รายการสินค้าคงคลัง[[#This Row],[ราคา]]","v":600},{"$f":"IFERROR(IF(รายการสินค้าคงคลัง[[#This Row],[ปริมาณ]]<=รายการสินค้าคงคลัง[[#This Row],[จำนวนการสั่งซื้อใหม่]],1,0),0)","v":0}]
[null,"XR23423","รายการ 5","T098",{"$f":"IFERROR(VLOOKUP(รายการสินค้าคงคลัง[[#This Row],[หมายเลขช่อง]],เงินออม[],3,FALSE),\"\")","v":"แถว 3 ช่อง 1"},"แต่ละรายการ",12,10,26,{"$f":"รายการสินค้าคงคลัง[[#This Row],[ปริมาณ]]*รายการสินค้าคงคลัง[[#This Row],[ราคา]]","v":312},{"$f":"IFERROR(IF(รายการสินค้าคงคลัง[[#This Row],[ปริมาณ]]<=รายการสินค้าคงคลัง[[#This Row],[จำนวนการสั่งซื้อใหม่]],1,0),0)","v":0}]
[null,"PW98762","รายการ 6","T345",{"$f":"IFERROR(VLOOKUP(รายการสินค้าคงคลัง[[#This Row],[หมายเลขช่อง]],เงินออม[],3,FALSE),\"\")","v":"แถว 2 ช่อง 1"},"แต่ละรายการ",7,10,50,{"$f":"รายการสินค้าคงคลัง[[#This Row],[ปริมาณ]]*รายการสินค้าคงคลัง[[#This Row],[ราคา]]","v":350},{"$f":"IFERROR(IF(รายการสินค้าคงคลัง[[#This Row],[ปริมาณ]]<=รายการสินค้าคงคลัง[[#This Row],[จำนวนการสั่งซื้อใหม่]],1,0),0)","v":1}]
[null,"BM87684","รายการ 7","T349",{"$f":"IFERROR(VLOOKUP(รายการสินค้าคงคลัง[[#This Row],[หมายเลขช่อง]],เงินออม[],3,FALSE),\"\")","v":"แถว 1 ช่อง 2"},"แต่ละรายการ",10,5,10,{"$f":"รายการสินค้าคงคลัง[[#This Row],[ปริมาณ]]*รายการสินค้าคงคลัง[[#This Row],[ราคา]]","v":100},{"$f":"IFERROR(IF(รายการสินค้าคงคลัง[[#This Row],[ปริมาณ]]<=รายการสินค้าคงคลัง[[#This Row],[จำนวนการสั่งซื้อใหม่]],1,0),0)","v":0}]
[null,"BH67655","รายการ 8","T5789",{"$f":"IFERROR(VLOOKUP(รายการสินค้าคงคลัง[[#This Row],[หมายเลขช่อง]],เงินออม[],3,FALSE),\"\")","v":"แถว 1 ช่อง 1"},"แต่ละรายการ",19,10,3,{"$f":"รายการสินค้าคงคลัง[[#This Row],[ปริมาณ]]*รายการสินค้าคงคลัง[[#This Row],[ราคา]]","v":57},{"$f":"IFERROR(IF(รายการสินค้าคงคลัง[[#This Row],[ปริมาณ]]<=รายการสินค้าคงคลัง[[#This Row],[จำนวนการสั่งซื้อใหม่]],1,0),0)","v":0}]
[null,"WT98768","รายการ 9","T9875",{"$f":"IFERROR(VLOOKUP(รายการสินค้าคงคลัง[[#This Row],[หมายเลขช่อง]],เงินออม[],3,FALSE),\"\")","v":"แถว 2 ช่อง 2"},"แพคเกจ (5 ct)",20,30,14,{"$f":"รายการสินค้าคงคลัง[[#This Row],[ปริมาณ]]*รายการสินค้าคงคลัง[[#This Row],[ราคา]]","v":280},{"$f":"IFERROR(IF(รายการสินค้าคงคลัง[[#This Row],[ปริมาณ]]<=รายการสินค้าคงคลัง[[#This Row],[จำนวนการสั่งซื้อใหม่]],1,0),0)","v":1}]
[null,"TS3456","รายการ 10","T349",{"$f":"IFERROR(VLOOKUP(รายการสินค้าคงคลัง[[#This Row],[หมายเลขช่อง]],เงินออม[],3,FALSE),\"\")","v":"แถว 1 ช่อง 2"},"แต่ละรายการ",15,8,60,{"$f":"รายการสินค้าคงคลัง[[#This Row],[ปริมาณ]]*รายการสินค้าคงคลัง[[#This Row],[ราคา]]","v":900},{"$f":"IFERROR(IF(รายการสินค้าคงคลัง[[#This Row],[ปริมาณ]]<=รายการสินค้าคงคลัง[[#This Row],[จำนวนการสั่งซื้อใหม่]],1,0),0)","v":0}]
[null,"WDG123","รายการ 11","T349",{"$f":"IFERROR(VLOOKUP(รายการสินค้าคงคลัง[[#This Row],[หมายเลขช่อง]],เงินออม[],3,FALSE),\"\")","v":"แถว 1 ช่อง 2"},"แต่ละรายการ",25,15,8,{"$f":"รายการสินค้าคงคลัง[[#This Row],[ปริมาณ]]*รายการสินค้าคงคลัง[[#This Row],[ราคา]]","v":200},{"$f":"IFERROR(IF(รายการสินค้าคงคลัง[[#This Row],[ปริมาณ]]<=รายการสินค้าคงคลัง[[#This Row],[จำนวนการสั่งซื้อใหม่]],1,0),0)","v":0}]

{"sheet":"รายการเลือกสินค้าคงคลัง","index":1,"n_rows":9,"n_cols":9,"rows_kept":9,"cut":false,"hidden":false,"merged":[]}
[null,"รายการเลือกสินค้าคงคลัง"]
[null,null,"รายการสินค้าคงคลัง"]
[]
[null,"หมายเลขการสั่งซื้อ","SKU","จำนวนที่เลือก","จำนวนที่พร้อมใช้งาน","คำอธิบายรายการ","หน่วย","หมายเลขช่อง","ตำแหน่งที่ตั้ง"]
[null,"TP001-1","SP7875",3,{"$f":"IFERROR(VLOOKUP(InventoryPickList[[#This Row],[SKU]],รายการสินค้าคงคลัง[],6,FALSE),\"\")","v":20},{"$f":"IFERROR(VLOOKUP(InventoryPickList[[#This Row],[SKU]],รายการสินค้าคงคลัง[],2,FALSE),\"\")","v":"รายการ 1"},{"$f":"IFERROR(VLOOKUP(InventoryPickList[[#This Row],[SKU]],รายการสินค้าคงคลัง[],5,FALSE),\"\")","v":"แต่ละรายการ"},{"$f":"IFERROR(VLOOKUP(InventoryPickList[[#This Row],[SKU]],รายการสินค้าคงคลัง[],3,FALSE),\"\")","v":"T345"},{"$f":"IFERROR(VLOOKUP(InventoryPickList[[#This Row],[SKU]],รายการสินค้าคงคลัง[],4,FALSE),\"\")","v":"แถว 2 ช่อง 1"}]
[null,"TP001-1","YE98767",1,{"$f":"IFERROR(VLOOKUP(InventoryPickList[[#This Row],[SKU]],รายการสินค้าคงคลัง[],6,FALSE),\"\")","v":40},{"$f":"IFERROR(VLOOKUP(InventoryPickList[[#This Row],[SKU]],รายการสินค้าคงคลัง[],2,FALSE),\"\")","v":"รายการ 4"},{"$f":"IFERROR(VLOOKUP(InventoryPickList[[#This Row],[SKU]],รายการสินค้าคงคลัง[],5,FALSE),\"\")","v":"กล่อง (10 ct)"},{"$f":"IFERROR(VLOOKUP(InventoryPickList[[#This Row],[SKU]],รายการสินค้าคงคลัง[],3,FALSE),\"\")","v":"T9876"},{"$f":"IFERROR(VLOOKUP(InventoryPickList[[#This Row],[SKU]],รายการสินค้าคงคลัง[],4,FALSE),\"\")","v":"แถว 3 ช่อง 2"}]
[null,"TP001-1","BM87684",2,{"$f":"IFERROR(VLOOKUP(InventoryPickList[[#This Row],[SKU]],รายการสินค้าคงคลัง[],6,FALSE),\"\")","v":10},{"$f":"IFERROR(VLOOKUP(InventoryPickList[[#This Row],[SKU]],รายการสินค้าคงคลัง[],2,FALSE),\"\")","v":"รายการ 7"},{"$f":"IFERROR(VLOOKUP(InventoryPickList[[#This Row],[SKU]],รายการสินค้าคงคลัง[],5,FALSE),\"\")","v":"แต่ละรายการ"},{"$f":"IFERROR(VLOOKUP(InventoryPickList[[#This Row],[SKU]],รายการสินค้าคงคลัง[],3,FALSE),\"\")","v":"T349"},{"$f":"IFERROR(VLOOKUP(InventoryPickList[[#This Row],[SKU]],รายการสินค้าคงคลัง[],4,FALSE),\"\")","v":"แถว 1 ช่อง 2"}]
[null,"TP001-1","TS3456",6,{"$f":"IFERROR(VLOOKUP(InventoryPickList[[#This Row],[SKU]],รายการสินค้าคงคลัง[],6,FALSE),\"\")","v":15},{"$f":"IFERROR(VLOOKUP(InventoryPickList[[#This Row],[SKU]],รายการสินค้าคงคลัง[],2,FALSE),\"\")","v":"รายการ 10"},{"$f":"IFERROR(VLOOKUP(InventoryPickList[[#This Row],[SKU]],รายการสินค้าคงคลัง[],5,FALSE),\"\")","v":"แต่ละรายการ"},{"$f":"IFERROR(VLOOKUP(InventoryPickList[[#This Row],[SKU]],รายการสินค้าคงคลัง[],3,FALSE),\"\")","v":"T349"},{"$f":"IFERROR(VLOOKUP(InventoryPickList[[#This Row],[SKU]],รายการสินค้าคงคลัง[],4,FALSE),\"\")","v":"แถว 1 ช่อง 2"}]
[null,"TP001-1","MK676554",3,{"$f":"IFERROR(VLOOKUP(InventoryPickList[[#This Row],[SKU]],รายการสินค้าคงคลัง[],6,FALSE),\"\")","v":10},{"$f":"IFERROR(VLOOKUP(InventoryPickList[[#This Row],[SKU]],รายการสินค้าคงคลัง[],2,FALSE),\"\")","v":"รายการ 3"},{"$f":"IFERROR(VLOOKUP(InventoryPickList[[#This Row],[SKU]],รายการสินค้าคงคลัง[],5,FALSE),\"\")","v":"แต่ละรายการ"},{"$f":"IFERROR(VLOOKUP(InventoryPickList[[#This Row],[SKU]],รายการสินค้าคงคลัง[],3,FALSE),\"\")","v":"T5789"},{"$f":"IFERROR(VLOOKUP(InventoryPickList[[#This Row],[SKU]],รายการสินค้าคงคลัง[],4,FALSE),\"\")","v":"แถว 1 ช่อง 1"}]

{"sheet":"เงินออม","index":2,"n_rows":11,"n_cols":7,"rows_kept":11,"cut":false,"hidden":false,"merged":[]}
[null,"ค้นหาช่อง"]
[null,"รายการสินค้าคงคลัง"]
[]
[null,"หมายเลขช่อง","รายละเอียด","ตำแหน่งที่ตั้ง","ความกว้าง","ความสูง","ความยาว"]
[null,"T345","ช่องขนาดใหญ่","แถว 2 ช่อง 1",50,10,10]
[null,"T5789","ช่องขนาดเล็ก","แถว 1 ช่อง 1",25,5,5]
[null,"T9876","ช่องขนาดใหญ่","แถว 3 ช่อง 2",50,10,10]
[null,"T098","ช่องขนาดปานกลาง","แถว 3 ช่อง 1",30,7,10]
[null,"T349","ช่องขนาดเล็ก","แถว 1 ช่อง 2",25,5,5]
[null,"T5789","ช่องขนาดใหญ่","แถว 4 ช่อง 5",50,10,10]
[null,"T9875","ช่องขนาดใหญ่","แถว 2 ช่อง 2",50,10,10]